[Event "Asian Amateur-ch Open 2022"]
[Site "Muscat"]
[Date "2022.10.02"]
[Round "3.9"]
[White "Shahali, Milad"]
[Black "Musallam Salim Al Aamri"]
[Result "1/2-1/2"]
[ECO "B07"]
[WhiteElo "1910"]
[BlackElo "1680"]
[Annotator "TA"]
[PlyCount "155"]
[EventDate "2022.09.29"]
[EventType "swiss"]
[SourceTitle "playchess.com"]
[Source "ChessBase"]
[SourceQuality "1"]
[TimeControl "5400+30"]

{[%evp 12,155,57,29,46,8,16,27,70,45,42,45,118,124,91,104,106,90,87,77,104,91,85,106,122,121,135,96,122,98,125,68,200,150,173,17,21,37,65,46,72,37,210,33,20,27,28,29,32,4,8,0,0,0,0,0,17,-56,0,-19,-20,-19,-18,-162,-150,-150,-33,-59,0,-147,-138,-152,-150,-136,0,0,0,0,0,-22,0,-18,-16,0,0,0,0,0,64,43,39,34,14,0,181,160,175,168,160,157,170,151,168,0,0,0,95,81,65,8,62,62,62,62,78,0,220,229,436,431,357,317,255,29,35,34,59,61,90,8,8,8,8,8,8,8,8,8,8,8,8,8,8,8,8,0]} 1. e4 {[%emt 0:00:05]} d6 {[%emt 0:00:17]} 2. d4 {[%emt 0:00:10]} Nf6 {[%emt 0:00:16]} 3. Nc3 {[%emt 0:00:11]} c6 {[%emt 0:00:31]} 4. f3 {[%emt 0:00:39]} g6 {[%emt 0:01:12]} 5. Be3 {[%emt 0:00:06]} Bg7 {[%emt 0:00:16]} 6. Qd2 {[%emt 0:00:03]} Nbd7 {[%emt 0:04:57]} 7. O-O-O {[%emt 0:00:19]} Qc7 {[%emt 0:09:26] B07: Pirc Defence: Miscellaneous Systems.} 8. Bh6 {[%emt 0:01:09]} Bxh6 {[%emt 0:04:18]} 9. Qxh6 {[%emt 0:00:08]} c5 {[%emt 0:03:16] White has an edge.} 10. Nge2 {[%emt 0:04:36]} a6 {[%emt 0:03:47] [#]} 11. g4 $146 {[%emt 0:02:58][%cal Bg2g4,Bg4g5][%mdl 32]} ({Predecessor:} 11. f4 Ng4 12. Qg7 Rf8 13. Rg1 Ne3 14. Rd3 Nxf1 15. Rxf1 Nf6 16. e5 Bg4 17. exf6 Bf5 18. Nd5 Qd7 19. fxe7 Bxd3 20. Qxf8# {1-0 (20) Stankovic,S (2047)-Attar,R St Chely d'Aubrac 2003}) 11... b5 {[%emt 0:04:45]} (11... cxd4 $14 12. Nxd4 (12. Rxd4 Ne5 $11) 12... Nb6) 12. g5 $1 $16 {[%emt 0:23:06]} Nh5 {[%emt 0:14:42]} 13. Nd5 {[%emt 0:14:11]} Qa5 {[%emt 0:04:41]} 14. Kb1 {[%emt 0:00:28] White has more active pieces. The black rooks are badly placed.} Bb7 {[%emt 0:03:21]} 15. Bh3 {[%emt 0:08:14]} Bxd5 {[%emt 0:06:10]} 16. exd5 {[%emt 0:01:51]} c4 {[%emt 0:04:28]} 17. Bg4 $1 {[%emt 0:06:42]} b4 {[%emt 0:05:54]} 18. Bxh5 {[%emt 0:08:23]} gxh5 {[%emt 0:00:43]} 19. Qg7 {[%emt 0:02:26]} (19. Qxh5 $6 Qxd5 20. Nf4 Qf5 $11) 19... Rf8 {[%emt 0:00:48]} 20. Qxh7 {[%emt 0:02:16]} O-O-O {[%emt 0:03:32]} 21. Qe4 {[%emt 0:02:11]} (21. Nf4 $16) 21... Kc7 {[%emt 0:00:18]} (21... Nb6 $1 $14) 22. Nf4 {[%emt 0:06:02]} (22. Qxe7 $2 Rde8 23. Qe4 Rxe4 24. fxe4 Re8 $19) 22... c3 {[%emt 0:04:29]} 23. bxc3 $2 {[%emt 0:01:36]} (23. Qxe7 $2 Rde8 24. Ne6+ fxe6 $19) ({White should play} 23. g6 $18) 23... bxc3 $11 {[%emt 0:00:29]} 24. Ka1 {[%emt 0:00:06]} Qa3 {[%emt 0:05:21][%csl Gc3][%cal Ra3b2]} 25. Rb1 {[%emt 0:01:01] Against Qb2+} Rb8 {[%emt 0:00:22]} 26. Nd3 {[%emt 0:05:59] Against Rb2. The board is on fire.} (26. Qxe7 Rb2 27. Ne6+ fxe6) 26... Rfe8 $2 {[%emt 0:04:12]} (26... Rb5 $1 $14) 27. Rb3 $2 {[%emt 0:01:14]} (27. Rhc1 $1 $18) 27... Rxb3 $14 {[%emt 0:02:34]} 28. cxb3 {[%emt 0:00:03]} Rb8 $1 {[%emt 0:01:01]} 29. Rb1 {[%emt 0:02:58]} (29. Qxe7 Rxb3 30. Rb1 (30. Qxf7 Rb2) 30... Rb5 31. Rxb5 (31. Qxf7 c2) 31... axb5 $15) 29... Rb5 {[%emt 0:00:40][%cal Oa3a2] ( -> ...Qxa2+!)} (29... c2 30. Rb2 Kd8 31. Qh7 (31. Rxc2 Rxb3 32. Nc1 Rxf3 $11) 31... Rxb3 32. Rxb3 $16) 30. Qe2 {[%emt 0:00:15] And now Qc2 would win.} (30. Qxe7 $2 Qxa2+ $3 {[%mdl 512]} 31. Kxa2 Ra5#) (30. b4 $5 {[%cal Rb1b3]} c2 31. Rc1 Qc3+ 32. Nb2 $16) 30... Kd8 $1 {[%emt 0:01:01]} 31. Qc2 {[%emt 0:06:34]} Nb6 {[%emt 0:03:18]} 32. Qxc3 {[%emt 0:00:00]} Nxd5 {[%emt 0:00:13]} 33. Qb2 {[%emt 0:00:00]} Qa5 {[%emt 0:01:04]} 34. b4 {[%emt 0:00:00]} (34. f4 $11) 34... Qc7 {[%emt 0:00:50]} (34... Qa4 $1 $15) 35. a4 {[%emt 0:00:53]} Rb8 {[%emt 0:00:36][%mdl 1024] Black has compensation.} 36. Qb3 {[%emt 0:00:02] Inhibits Qc4.} e6 {[%emt 0:01:19]} 37. f4 {[%emt 0:00:40]} (37. Rc1 $11 {and White has nothing to worry.} Qb6 38. Rc4) 37... Qb6 $1 $19 {[%emt 0:00:17]} 38. Qb2 {[%emt 0:00:49]} Qc6 {[%emt 0:00:28]} (38... Rc8 $17 {...Nc3 is the strong threat.} 39. Rc1 Rxc1+ 40. Nxc1 Nxf4) 39. Qb3 $15 {[%emt 0:00:20]} Qb6 {[%emt 0:00:42]} (39... a5 $1 $15 40. b5 Qb6) 40. Qb2 $1 $17 {[%emt 0:00:18]} Rc8 $1 {[%emt 0:00:53]} 41. Rc1 {[%emt 0:00:58] Inhibits Nc3.} Rxc1+ {[%emt 0:00:39]} 42. Nxc1 {[%emt 0:00:01]} Qxb4 {[%emt 0:01:19]} (42... Nxb4 43. Na2 Nd5 44. Qxb6+ Nxb6 45. Nc3 $15) (42... Nxf4 $17 {Strongly threatening ...Nd5.} 43. Ka2 Qc6) 43. Qxb4 $11 {[%emt 0:00:17]} Nxb4 $17 {[%emt 0:00:02][%mdl 4096] Endgame KN-KN} 44. Kb2 {[%emt 0:00:20] Against Nc2} Nd5 {[%emt 0:00:07]} 45. Ne2 {[%emt 0:00:14]} Kc7 {[%emt 0:00:42]} (45... Ke7 $5 {[%cal Rf7f6]}) 46. Kb3 {[%emt 0:00:39]} Kc6 {[%emt 0:00:09]} 47. Kc4 {[%emt 0:01:02]} Ne3+ {[%emt 0:00:21]} 48. Kd3 {[%emt 0:00:27]} Nd5 {[%emt 0:00:32]} 49. Ke4 {[%emt 0:00:21]} Ne7 {[%emt 0:00:27] Prevents f5.} (49... f5+ $1 $11 50. Kf3 Ne7) 50. Ng3 $14 {[%emt 0:01:23]} h4 {[%emt 0:00:32]} 51. Ne2 {[%emt 0:00:28]} Kb6 {[%emt 0:00:07]} 52. d5 {[%emt 0:00:32]} Kc5 $2 {[%emt 0:01:14]} (52... Nxd5 $11 53. f5 Ne7 54. fxe6 fxe6) 53. dxe6 $18 {[%emt 0:00:20]} fxe6 {[%emt 0:00:02]} 54. Nd4 {[%emt 0:00:48]} d5+ {[%emt 0:02:08]} 55. Ke3 {[%emt 0:00:36]} Kd6 {[%emt 0:00:34]} 56. Kf3 $1 {[%emt 0:00:18] Threatens to win with Kg4.} e5 {[%emt 0:00:44] [#]} 57. Ne2 {[%emt 0:00:40]} (57. Nb3 $1 $18) 57... Ke6 $1 $11 {[%emt 0:00:31]} 58. Kg4 {[%emt 0:00:26]} Nf5 {[%emt 0:00:19]} (58... d4 $11 {remains equal.}) 59. fxe5 $16 {[%emt 0:00:30]} Kxe5 {[%emt 0:00:03]} 60. Nf4 {[%emt 0:00:31]} (60. Nc1 $1 $14 Ng7 61. Nd3+ (61. Kxh4 Kf5 $14) 61... Kd4 62. Ne1) 60... d4 {[%emt 0:00:51]} ({Better is} 60... Ne3+ $1 $11 61. Kf3 d4) 61. Nd3+ $14 {[%emt 0:00:01]} Ke4 $1 {[%emt 0:00:15]} 62. Nc5+ {[%emt 0:00:10]} Ke5 {[%emt 0:00:09]} 63. Nxa6 {[%emt 0:00:37]} (63. a5 $16) 63... Ne3+ $2 {[%emt 0:01:25]} (63... d3 $11 {and Black is okay.} 64. Kf3 Kd4) 64. Kf3 $18 {[%emt 0:00:09]} ({Stronger than} 64. Kxh4 d3 65. Nb4 (65. g6 {leads to mate.} Nf5+ 66. Kg5 d2 67. Nb8 d1=Q 68. Nc6+ Ke6) 65... d2 66. Nd3+ Ke4 $15) 64... Kf5 $2 {[%emt 0:00:11]} (64... Nf1 65. h3 d3) 65. Nc5 {[%emt 0:00:16]} Nc4 {[%emt 0:00:12]} 66. g6 {[%emt 0:00:57]} Ne5+ {[%emt 0:00:09] [#]} 67. Ke2 $2 {[%emt 0:00:15]} (67. Kg2 $1 $18 {Black must now prevent g7.} Nxg6 68. a5) 67... Kxg6 {[%emt 0:00:11]} 68. a5 {[%emt 0:00:12]} Kf5 {[%emt 0:00:13]} 69. a6 {[%emt 0:00:08] White wants to mate with a7.} Nc6 {[%emt 0:00:07]} 70. Kd3 {[%emt 0:01:40]} (70. Kf3 $16) 70... Nb4+ $11 {[%emt 0:02:22] The position is equal.} 71. Kxd4 {[%emt 0:00:11]} Nxa6 {[%emt 0:00:05]} 72. Nxa6 {[%emt 0:00:06] KN-KP} Kg4 {[%emt 0:00:01]} 73. Ke3 {[%emt 0:00:07] Intending Kf2 and mate.} Kh3 {[%emt 0:00:02]} 74. Kf2 {[%emt 0:00:05] White threatens Kg1 and mate.} Kxh2 {[%emt 0:00:02]} 75. Nc5 {[%emt 0:00:04]} Kh3 {[%emt 0:00:02]} 76. Kf3 {[%emt 0:01:14]} Kh2 {[%emt 0:00:16]} 77. Ne4 {[%emt 0:00:07]} Kg1 {[%emt 0:00:05]} 78. Nc5 {[%emt 0:03:18] A wild game.  Weighted Error Value: White=0.24 (precise) /Black=0.29 (precise)} 1/2-1/2

[Event "Asian Amateur-ch Open 2022"]
[Site "Muscat"]
[Date "2022.10.02"]
[Round "3.10"]
[White "Al Zadjali, Abdul Rahman"]
[Black "Dadabaev, Zhanybek"]
[Result "0-1"]
[ECO "D41"]
[WhiteElo "1534"]
[BlackElo "1902"]
[Annotator "TA"]
[PlyCount "122"]
[EventDate "2022.09.29"]
[EventType "swiss"]
[SourceTitle "playchess.com"]
[Source "ChessBase"]
[SourceQuality "1"]
[TimeControl "5400+30"]

{[%evp 13,122,24,29,10,19,16,25,-18,-15,-30,-21,-97,-11,-91,-84,-114,-86,-70,-6,-183,-206,-180,-127,-129,-125,-110,-102,-125,-124,-103,-86,-100,-62,-161,-162,-162,-161,-162,-162,-161,-161,-164,-161,-164,-162,-133,-118,-150,-150,-161,-156,-430,-426,-551,-430,-430,-421,-421,-405,-463,-457,-537,-536,-524,-435,-528,-425,-538,-508,-620,-395,-535,-549,-588,-585,-610,-344,-339,0,-554,-466,-628,-434,-666,-666,-679,-612,-771,-766,-742,-420,-635,-644,-619,-598,-607,-558,-756,-675,-12830,-2214,-12840,-12840,-12841,-12841,-12836,-6303,-12841,-12842,-12845,-12845]} 1. d4 {[%emt 0:00:17]} d5 {[%emt 0:00:18]} 2. c4 {[%emt 0:00:22]} e6 {[%emt 0:00:10]} 3. Nc3 {[%emt 0:00:53]} Nf6 {[%emt 0:02:37]} 4. Nf3 {[%emt 0:03:11]} c5 {[%emt 0:00:15]} 5. cxd5 {[%emt 0:01:13]} cxd4 {[%emt 0:00:50]} 6. Qa4+ {[%emt 0:01:18]} Bd7 {[%emt 0:01:08]} 7. Qxd4 {[%emt 0:01:17]} exd5 {[%emt 0:00:50]} 8. Nxd5 {[%emt 0:02:03] Qe5+ is the strong threat. D41: Queen's Gambit Declined: Semi-Tarrasch with 5 cxd5.} Qa5+ {[%emt 0:01:05]} 9. Nc3 {[%emt 0:00:55]} Nc6 {[%emt 0:00:21] Against Qe5+} 10. Qe3+ {[%emt 0:03:34] White has an edge.} Be7 {[%emt 0:00:44]} 11. Bd2 {[%emt 0:03:43]} O-O {[%emt 0:23:01] [#]} 12. Ne4 $146 {[%emt 0:05:48]} (12. Qf4 $11 {keeps the balance.}) ({Predecessor:} 12. Qg5 Qb6 13. Qb5 Qc7 14. Qc4 Qb6 15. Na4 Qd8 16. e3 Rc8 17. Nc3 Nb4 18. Qb3 {1-0 (36) Nazaretyan,T (2316)-Manukian,A (2196) Chess.com INT 2022}) 12... Qf5 {[%emt 0:17:10]} (12... Nd5 $17 13. Qb3 Ndb4) 13. Nxf6+ {[%emt 0:04:43]} (13. Ng3 $11 Qd5 14. Qb3) 13... Bxf6 $17 {[%emt 0:00:19]} 14. Bc3 {[%emt 0:00:16]} Rfe8 {[%emt 0:01:05]} 15. Qd2 {[%emt 0:05:42]} Rac8 {[%emt 0:10:40] Black is much more active. The white rooks are badly placed.} (15... Bxc3 $15 16. bxc3 Ne5 17. Nxe5 Rxe5) 16. Bxf6 $2 {[%emt 0:05:39]} (16. e3 $11) 16... Qxf6 $19 {[%emt 0:00:42]} 17. e3 {[%emt 0:20:03] [#]} Bg4 {[%emt 0:14:14]} (17... Red8 $1 $19 {Hoping for ...Bg4.} 18. Qc3 Qe7) 18. Be2 $17 {[%emt 0:03:32] [#]} Red8 $1 {[%emt 0:00:48]} 19. Qc3 {[%emt 0:02:15] [#]} Nd4 $1 {[%emt 0:01:18][%mdl 512]} 20. Qxd4 {[%emt 0:00:21]} Rxd4 {[%emt 0:00:11]} 21. Nxd4 {[%emt 0:00:06]} Bxe2 {[%emt 0:02:08]} 22. Kxe2 {[%emt 0:00:02]} h5 {[%emt 0:04:21]} 23. Rhc1 {[%emt 0:01:39]} (23. Rhd1 $15) 23... Rxc1 {[%emt 0:00:20]} 24. Rxc1 $19 {[%emt 0:00:01][%mdl 4096] Endgame KQ-KRN} Qa6+ {[%emt 0:00:03]} 25. Kf3 {[%emt 0:01:13]} Qxa2 {[%emt 0:03:05]} 26. b3 {[%emt 0:00:10]} Qd2 {[%emt 0:02:43]} 27. Rc8+ {[%emt 0:03:30]} Kh7 {[%emt 0:00:03]} 28. g3 {[%emt 0:00:22]} Qa5 {[%emt 0:01:44] Against Rc7} 29. Rc4 {[%emt 0:01:43]} a6 {[%emt 0:01:30]} 30. Ke4 {[%emt 0:02:25]} Qe1 {[%emt 0:01:04]} 31. f3 {[%emt 0:01:12]} h4 {[%emt 0:03:27]} 32. g4 $2 {[%emt 0:00:25]} (32. Rc7 $17) 32... b5 {[%emt 0:01:32]} 33. Rc7 {[%emt 0:00:29]} Qb1+ {[%emt 0:00:40]} 34. Kf4 {[%emt 0:01:24]} Qg1 {[%emt 0:04:06]} 35. Rc2 {[%emt 0:02:15]} b4 {[%emt 0:02:19]} 36. Ke4 {[%emt 0:00:57]} a5 {[%emt 0:00:10]} 37. Kd3 {[%emt 0:01:18]} Qf1+ {[%emt 0:00:33]} 38. Re2 {[%emt 0:00:13]} Qb1+ {[%emt 0:00:58]} 39. Kc4 {[%emt 0:00:26]} Qa1 {[%emt 0:00:47] aiming for ...a4.} 40. Kb5 {[%emt 0:00:59]} g6 {[%emt 0:00:25]} 41. Rc2 {[%emt 0:00:48]} Qa3 {[%emt 0:00:34][%cal Oa5a4] And now ...a4! would win.} 42. Rc7 {[%emt 0:00:51]} Kg8 {[%emt 0:00:28][%cal Oa5a4]} 43. Rc8+ {[%emt 0:01:28]} Kg7 {[%emt 0:00:01]} 44. Rc7 {[%emt 0:00:01]} Qa2 {[%emt 0:00:30]} 45. Rc2 {[%emt 0:00:07]} Qa3 {[%emt 0:00:13]} (45... Qa1 46. g5 Qg1) 46. Rc7 $1 {[%emt 0:00:02]} Qa1 {[%emt 0:00:22][%cal Oa5a4]} 47. Rc2 {[%emt 0:01:05]} Kh6 {[%emt 0:00:04][%cal Oa5a4]} 48. Re2 {[%emt 0:00:59]} (48. Kc4 $142 a4 49. bxa4 Qxa4 50. Re2) 48... Qa3 {[%emt 0:00:14]} 49. Rc2 {[%emt 0:00:05]} a4 {[%emt 0:00:15]} 50. Kc4 {[%emt 0:01:28]} axb3 {[%emt 0:00:21]} 51. Nxb3 {[%emt 0:00:03]} Qa4 {[%emt 0:00:19]} 52. f4 {[%emt 0:00:55]} (52. e4 $142) 52... Qc6+ {[%emt 0:00:18] Black is clearly winning.} 53. Nc5 {[%emt 0:00:14]} Qf3 $1 {[%emt 0:00:39][%csl LRe3,LRg4]} 54. g5+ {[%emt 0:00:24]} Kh5 {[%emt 0:00:23]} 55. Kxb4 {[%emt 0:03:39]} Qxe3 {[%emt 0:00:04]} 56. Rc4 {[%emt 0:00:10]} Qd2+ {[%emt 0:00:15]} 57. Kb5 {[%emt 0:01:04]} Qxh2 {[%emt 0:00:02]} 58. Nd7 {[%emt 0:00:12]} Qb2+ {[%emt 0:00:34]} 59. Kc6 {[%emt 0:01:31]} Kg4 {[%emt 0:01:21]} (59... h3 $142 60. Nf6+ Kh4 61. f5+ Kxg5 62. Ne4+ Kh6) 60. Ne5+ {[%emt 0:00:22]} Kg3 {[%emt 0:00:51]} 61. Nxf7 {[%emt 0:00:14]} h3 {[%emt 0:00:09] Weighted Error Value: White=0.81/Black=0.52} 0-1

[Event "Asian Amateur-ch Open 2022"]
[Site "Muscat"]
[Date "2022.10.02"]
[Round "3.11"]
[White "Gabdushev, Arman"]
[Black "Madhusoodanan, K.R."]
[Result "0-1"]
[ECO "A25"]
[WhiteElo "1827"]
[BlackElo "1663"]
[Annotator "NA RC COMBH"]
[PlyCount "90"]
[EventDate "2022.09.29"]
[EventType "swiss"]
[SourceTitle "playchess.com"]
[Source "ChessBase"]
[SourceQuality "1"]
[TimeControl "5400+30"]

1. c4 {[%emt 0:00:02]} e5 {[%emt 0:03:19]} 2. Nc3 {[%emt 0:00:19]} Bc5 {[%emt 0:01:05]} 3. g3 {[%emt 0:00:20]} Nf6 {[%emt 0:00:55]} 4. Bg2 {[%emt 0:00:21]} O-O {[%emt 0:01:32]} 5. e3 {[%emt 0:01:11]} Re8 {[%emt 0:01:01]} 6. Nge2 {[%emt 0:00:12]} Nc6 {[%emt 0:00:36]} 7. O-O {[%emt 0:00:13]} e4 {[%emt 0:07:54]} 8. Na4 {[%emt 0:03:38]} Bf8 {[%emt 0:04:39]} 9. d3 {[%emt 0:00:37]} exd3 {[%emt 0:02:20]} 10. Qxd3 {[%emt 0:00:11]} Ne5 {[%emt 0:04:47]} 11. Qc2 {[%emt 0:01:28]} d6 {[%emt 0:00:40]} 12. h3 {[%emt 0:01:06]} Bd7 {[%emt 0:02:28]} 13. f4 {[%emt 0:02:34]} Nc6 {[%emt 0:02:42]} 14. Nac3 {[%emt 0:01:08]} g6 {[%emt 0:04:01]} 15. e4 {[%emt 0:03:56]} a5 {[%emt 0:04:16]} 16. a3 {[%emt 0:00:38]} a4 {[%emt 0:00:42]} 17. Be3 {[%emt 0:01:42]} Na5 {[%emt 0:01:09]} 18. Nd5 {[%emt 0:01:04]} Nb3 {[%emt 0:05:14]} 19. Rad1 {[%emt 0:00:22]} Bg7 {[%emt 0:05:56]} 20. Nec3 {[%emt 0:02:33]} Ra6 {[%emt 0:09:21]} 21. Nxf6+ {[%emt 0:02:17]} Bxf6 {[%emt 0:00:28]} 22. e5 {[%emt 0:00:20]} dxe5 {[%emt 0:07:35]} 23. Bxb7 {[%emt 0:00:28]} Rd6 {[%emt 0:01:21]} 24. Rxd6 {[%emt 0:02:59]} cxd6 {[%emt 0:00:07]} 25. fxe5 {[%emt 0:01:04]} Bxe5 {[%emt 0:02:57]} 26. Qf2 {[%emt 0:01:10]} f5 {[%emt 0:09:38]} 27. Bd5+ {[%emt 0:00:48]} Kg7 {[%emt 0:00:31]} 28. Kg2 {[%emt 0:04:49]} Qf6 {[%emt 0:02:12]} 29. Bf4 {[%emt 0:02:03]} Nc5 {[%emt 0:01:09]} 30. Qd2 {[%emt 0:01:22]} Bxf4 {[%emt 0:01:05]} 31. Rxf4 {[%emt 0:00:27]} Qe5 {[%emt 0:01:42]} 32. h4 {[%emt 0:01:57]} Qe3 {[%emt 0:00:41]} 33. Qxe3 {[%emt 0:03:17]} Rxe3 {[%emt 0:00:08]} 34. Kf2 {[%emt 0:01:45]} Rd3 {[%emt 0:02:52]} 35. Ke2 {[%emt 0:03:32]} Rxg3 {[%emt 0:00:30]} 36. Nb5 {[%emt 0:00:06]} Rb3 {[%emt 0:03:06]} 37. Nxd6 {[%emt 0:01:24]} Rxb2+ {[%emt 0:00:04]} 38. Kd1 {[%emt 0:00:27]} Kf6 {[%emt 0:00:13]} 39. Rf3 {[%emt 0:01:01]} h6 {[%emt 0:01:10]} 40. Ne4+ {[%emt 0:03:00]} Nxe4 {[%emt 0:00:26]} 41. Bxe4 {[%emt 0:00:03]} Ke5 {[%emt 0:00:25]} 42. Bc2 {[%emt 0:00:11]} g5 {[%emt 0:00:26]} 43. hxg5 {[%emt 0:01:15]} hxg5 {[%emt 0:00:03]} 44. Rd3 {[%emt 0:00:29]} Bc6 {[%emt 0:01:57]} 45. c5 {[%emt 0:00:19]} Rxc2 {[%emt 0:00:44]} 0-1

[Event "Asian Amateur-ch Open 2022"]
[Site "Muscat"]
[Date "2022.10.02"]
[Round "3.12"]
[White "Humaidan Mohamed, Alzaabi"]
[Black "Shreyas Seshadri Nallore"]
[Result "0-1"]
[ECO "C67"]
[WhiteElo "1393"]
[BlackElo "1791"]
[Annotator "NA RC COMBH"]
[PlyCount "72"]
[EventDate "2022.09.29"]
[EventType "swiss"]
[SourceTitle "playchess.com"]
[Source "ChessBase"]
[SourceQuality "1"]
[TimeControl "5400+30"]

1. e4 {[%emt 0:00:03]} e5 {[%emt 0:00:10]} 2. Nf3 {[%emt 0:00:09]} Nc6 {[%emt 0:00:11]} 3. Bb5 {[%emt 0:00:10]} Nf6 {[%emt 0:00:11]} 4. O-O {[%emt 0:00:19]} Nxe4 {[%emt 0:00:37]} 5. Re1 {[%emt 0:01:57]} Nd6 {[%emt 0:00:26]} 6. Nxe5 {[%emt 0:03:13]} Be7 {[%emt 0:00:14]} 7. Nxc6 {[%emt 0:00:42]} dxc6 {[%emt 0:00:38]} 8. Be2 {[%emt 0:01:48]} O-O {[%emt 0:00:50]} 9. d3 {[%emt 0:06:01]} Bf6 {[%emt 0:03:34]} 10. Nc3 {[%emt 0:01:24]} Be6 {[%emt 0:03:38]} 11. Bf3 {[%emt 0:00:05]} Re8 {[%emt 0:06:08]} 12. Ne4 {[%emt 0:04:15]} Bd5 {[%emt 0:07:29]} 13. Nxf6+ {[%emt 0:05:36]} Qxf6 {[%emt 0:00:35]} 14. Bxd5 {[%emt 0:02:35]} cxd5 {[%emt 0:00:12]} 15. c3 {[%emt 0:14:48]} d4 {[%emt 0:05:17]} 16. c4 {[%emt 0:03:32]} Rxe1+ {[%emt 0:07:25]} 17. Qxe1 {[%emt 0:00:53]} Re8 {[%emt 0:00:27]} 18. Qf1 {[%emt 0:04:50]} Qe5 {[%emt 0:06:18]} 19. Bd2 {[%emt 0:00:15]} Qf5 {[%emt 0:07:37]} 20. Re1 {[%emt 0:02:09]} Rxe1 {[%emt 0:04:48]} 21. Bxe1 {[%emt 0:01:56]} h6 {[%emt 0:08:43]} 22. Bb4 {[%emt 0:04:29]} Qg6 {[%emt 0:07:17]} 23. Bxd6 {[%emt 0:05:47]} Qxd6 {[%emt 0:00:16]} 24. Qe1 {[%emt 0:00:10]} Kf8 {[%emt 0:07:34]} 25. a3 {[%emt 0:03:54]} Qg6 {[%emt 0:03:35]} 26. Qe2 {[%emt 0:04:22]} Qg5 {[%emt 0:01:11]} 27. Qe1 {[%emt 0:00:25]} Qf5 {[%emt 0:00:49]} 28. Qe2 {[%emt 0:00:41]} b5 {[%emt 0:01:02]} 29. cxb5 {[%emt 0:13:04]} Qxb5 {[%emt 0:00:15]} 30. Qc2 {[%emt 0:00:24]} Qe5 {[%emt 0:01:44]} 31. Qd2 {[%emt 0:00:16]} c5 {[%emt 0:01:46]} 32. Qc1 {[%emt 0:03:53]} c4 {[%emt 0:04:24]} 33. f4 {[%emt 0:02:08]} Qe2 {[%emt 0:01:57]} 34. dxc4 {[%emt 0:01:08]} d3 {[%emt 0:01:25]} 35. Qf1 {[%emt 0:00:09]} Qe3+ {[%emt 0:00:36]} 36. Qf2 {[%emt 0:00:49]} Qc1+ {[%emt 0:00:10]} 0-1

[Event "Asian Amateur-ch Open 2022"]
[Site "Muscat"]
[Date "2022.10.02"]
[Round "3.13"]
[White "Ferzli, Dany Michael"]
[Black "Al Amri, Mahad"]
[Result "0-1"]
[ECO "E06"]
[WhiteElo "1789"]
[BlackElo "1589"]
[Annotator "NA RC COMBH"]
[PlyCount "118"]
[EventDate "2022.09.29"]
[EventType "swiss"]
[SourceTitle "playchess.com"]
[Source "ChessBase"]
[SourceQuality "1"]
[TimeControl "5400+30"]

1. d4 {[%emt 0:00:03]} d5 {[%emt 0:01:03]} 2. Nf3 {[%emt 0:00:08]} Nf6 {[%emt 0:00:25]} 3. c4 {[%emt 0:00:12]} e6 {[%emt 0:00:19]} 4. g3 {[%emt 0:00:07]} c5 {[%emt 0:01:33]} 5. Bg2 {[%emt 0:00:10]} Be7 {[%emt 0:00:14]} 6. O-O {[%emt 0:00:08]} O-O {[%emt 0:00:24]} 7. Qc2 {[%emt 0:01:47]} cxd4 {[%emt 0:01:56]} 8. Nxd4 {[%emt 0:01:21]} Qc7 {[%emt 0:00:43]} 9. cxd5 {[%emt 0:00:24]} Qxc2 {[%emt 0:00:11]} 10. Nxc2 {[%emt 0:00:06]} Nxd5 {[%emt 0:00:42]} 11. Rd1 {[%emt 0:01:57]} Rd8 {[%emt 0:01:51]} 12. Ne3 {[%emt 0:02:04]} Nxe3 {[%emt 0:00:57]} 13. Rxd8+ {[%emt 0:00:05]} Bxd8 {[%emt 0:00:11]} 14. Bxe3 {[%emt 0:00:09]} Nc6 {[%emt 0:00:09]} 15. Nc3 {[%emt 0:00:16]} e5 {[%emt 0:03:47]} 16. Rd1 {[%emt 0:00:29]} Be6 {[%emt 0:01:04]} 17. a3 {[%emt 0:05:54]} a6 {[%emt 0:02:25]} 18. Bc5 {[%emt 0:01:53]} Rc8 {[%emt 0:02:31]} 19. Ne4 {[%emt 0:08:12]} Bc7 {[%emt 0:05:10]} 20. Ng5 {[%emt 0:04:48]} Bc4 {[%emt 0:02:30]} 21. Bh3 {[%emt 0:13:53]} Rd8 {[%emt 0:01:35]} 22. Rxd8+ {[%emt 0:10:56]} Bxd8 {[%emt 0:00:15]} 23. Ne4 {[%emt 0:00:10]} Bxe2 {[%emt 0:00:38]} 24. Bc8 {[%emt 0:00:25]} b6 {[%emt 0:00:59]} 25. Be3 {[%emt 0:00:30]} Nd4 {[%emt 0:01:43]} 26. Nc3 {[%emt 0:01:21]} Bc4 {[%emt 0:02:16]} 27. Bb7 {[%emt 0:03:55]} Ne2+ {[%emt 0:03:44]} 28. Nxe2 {[%emt 0:00:05]} Bxe2 {[%emt 0:00:08]} 29. b3 {[%emt 0:02:42]} a5 {[%emt 0:00:56]} 30. a4 {[%emt 0:00:41]} Kf8 {[%emt 0:00:38]} 31. f3 {[%emt 0:00:26]} Ke7 {[%emt 0:00:40]} 32. Kf2 {[%emt 0:00:14]} Bd3 {[%emt 0:00:11]} 33. Ke1 {[%emt 0:00:23]} Bf5 {[%emt 0:04:26]} 34. Kd2 {[%emt 0:01:08]} Kd6 {[%emt 0:00:21]} 35. Kc3 {[%emt 0:00:13]} Be6 {[%emt 0:00:20]} 36. f4 {[%emt 0:03:42]} f6 {[%emt 0:01:58]} 37. Be4 {[%emt 0:01:38]} g6 {[%emt 0:01:05]} 38. h4 {[%emt 0:00:22]} Bd5 {[%emt 0:02:10]} 39. fxe5+ {[%emt 0:01:35]} Kxe5 {[%emt 0:01:11]} 40. Bc2 {[%emt 0:00:31]} Be4 {[%emt 0:00:22]} 41. Bf4+ {[%emt 0:02:46]} Kd5 {[%emt 0:00:26]} 42. Bxe4+ {[%emt 0:00:09]} Kxe4 {[%emt 0:00:14]} 43. Kc4 {[%emt 0:00:02]} g5 {[%emt 0:00:47]} 44. hxg5 {[%emt 0:00:39]} fxg5 {[%emt 0:00:09]} 45. Bb8 {[%emt 0:00:02]} h5 {[%emt 0:00:51]} 46. b4 {[%emt 0:00:43]} axb4 {[%emt 0:01:28]} 47. Kxb4 {[%emt 0:00:06]} h4 {[%emt 0:01:03]} 48. gxh4 {[%emt 0:00:24]} gxh4 {[%emt 0:00:08]} 49. Kb5 {[%emt 0:00:10]} Kd5 {[%emt 0:00:49]} 50. Bh2 {[%emt 0:01:08]} h3 {[%emt 0:00:58]} 51. Bb8 {[%emt 0:00:07]} Be7 {[%emt 0:01:17]} 52. Bh2 {[%emt 0:01:22]} Bd6 {[%emt 0:00:15]} 53. Bg1 {[%emt 0:00:19]} Bc5 {[%emt 0:00:08]} 54. Bh2 {[%emt 0:00:13]} Bf2 {[%emt 0:00:29]} 55. Bf4 {[%emt 0:11:11]} Ke4 {[%emt 0:00:25]} 56. Bc7 {[%emt 0:00:05]} Kf3 {[%emt 0:00:23]} 57. Bxb6 {[%emt 0:00:06]} h2 {[%emt 0:00:41]} 58. a5 {[%emt 0:00:10]} h1=Q {[%emt 0:00:24]} 59. a6 {[%emt 0:00:32]} Qb1+ {[%emt 0:00:19]} 0-1